bitfinex-derivatives/quotes_BTCF0:USTF0_20250609
["timestamp","ask_amount","ask_price","bid_price","bid_amount"]
[1749433130024,1.48340048,105610.0,105600.0,0.0782445]
[1749433130635,1.48340048,105610.0,105600.0,0.07824559]
[1749433131231,1.48340048,105610.0,105600.0,0.0676116]
[1749433131531,1.48340048,105610.0,105600.0,0.07824559]
[1749433132025,1.36604144,105610.0,105600.0,0.07824559]
[1749433132225,1.40507002,105610.0,105600.0,0.07824559]
[1749433132426,1.40507002,105610.0,105600.0,0.07824978]
[1749433133031,1.52242906,105610.0,105600.0,0.07824921]
[1749433133227,1.88322491,105610.0,105600.0,0.07824921]
[1749433133533,1.88322491,105610.0,105600.0,0.09141699]
[1749433133829,1.88322491,105610.0,105600.0,0.08098779]
[1749433134029,1.88322491,105610.0,105600.0,0.09162576]
[1749433134422,1.88322491,105610.0,105600.0,0.07824957]
[1749433134821,1.88322491,105610.0,105600.0,0.09162576]
[1749433135024,1.88322491,105610.0,105600.0,0.07824957]
[1749433135435,1.88322491,105610.0,105600.0,0.0916256]
[1749433135629,1.88322491,105610.0,105600.0,0.0676116]
[1749433135828,1.88322491,105610.0,105600.0,0.0809871]
[1749433136034,1.88322491,105610.0,105600.0,0.0676116]
[1749433136231,1.88322491,105610.0,105600.0,0.07827224]
[1749433136434,1.88322491,105610.0,105600.0,0.09167555]
[1749433136632,1.88322491,105610.0,105600.0,0.07827224]
[1749433136831,1.44990491,105610.0,105600.0,0.08101458]
[1749433137039,1.88238491,105610.0,105600.0,0.0676116]
[1749433137240,1.88238491,105610.0,105600.0,0.08101494]
[1749433137533,1.88238491,105610.0,105600.0,0.09167558]
[1749433137738,1.88238491,105610.0,105600.0,0.09166565]
[1749433137933,1.88238491,105610.0,105600.0,0.09166569]
[1749433138132,1.88238491,105610.0,105600.0,0.0676116]
[1749433138435,1.88238491,105610.0,105600.0,0.07827267]
[1749433138737,1.88238491,105610.0,105600.0,0.0676116]
[1749433139036,1.88238491,105610.0,105600.0,0.07827346]
[1749433139534,1.88238491,105610.0,105600.0,0.0676116]
[1749433140029,1.11490683,105610.0,105600.0,0.0676116]
[1749433140229,1.88266491,105610.0,105600.0,0.0676116]
[1749433140429,1.88266491,105610.0,105600.0,0.07827361]
[1749433141238,1.88266491,105610.0,105600.0,0.0676116]
[1749433141434,1.88266491,105610.0,105600.0,0.07827143]
[1749433142135,1.88266491,105610.0,105600.0,0.0782754]
[1749433142331,1.88266491,105610.0,105600.0,0.0780754]
[1749433142738,1.88266491,105610.0,105600.0,0.0782762]
[1749433142926,1.88266491,105610.0,105600.0,0.0676116]
[1749433143127,1.88266491,105610.0,105600.0,0.07827578]
[1749433143332,1.88266491,105610.0,105600.0,0.0676116]
[1749433143939,1.88266491,105610.0,105600.0,0.07827578]
[1749433144839,1.88266491,105610.0,105600.0,0.0676116]
[1749433145041,1.88266491,105610.0,105600.0,0.07827524]
[1749433145840,1.88266491,105610.0,105600.0,0.06690525]
[1749433146040,1.88266491,105610.0,105600.0,0.04873364]
[1749433146337,1.88266491,105610.0,105600.0,0.04873437]
[1749433146541,0.1893003,105600.0,105590.0,0.063]
[1749433146741,0.52874281,105600.0,105590.0,0.063]
[1749433147135,1.03960185,105600.0,105590.0,0.0317]
[1749433147334,1.03960185,105600.0,105590.0,0.0319]
[1749433147842,1.03960185,105600.0,105590.0,0.0339]
[1749433148742,1.03960185,105600.0,105590.0,0.0359]
[1749433148941,1.05729034,105600.0,105590.0,1e-08]
[1749433149534,1.05729034,105600.0,105590.0,0.00020001]
[1749433150441,1.05729034,105600.0,105590.0,0.0002]
[1749433151236,1.05729034,105600.0,105590.0,0.01446013]
[1749433151439,1.05729034,105600.0,105590.0,0.01426013]
[1749433151636,1.05729034,105600.0,105590.0,0.01446013]
[1749433151837,1.05729034,105600.0,105590.0,0.01426013]
[1749433152037,0.1893182,105590.0,105580.0,0.0314416]
[1749433152237,1.41539628,105590.0,105580.0,0.0314416]
[1749433152840,1.29803724,105590.0,105580.0,0.04570593]
[1749433153147,1.29803724,105590.0,105580.0,0.07800593]
[1749433153549,1.41539628,105590.0,105580.0,0.0637416]
[1749433153749,1.41539628,105590.0,105580.0,0.07900632]
[1749433154138,1.41539628,105590.0,105580.0,0.0647416]
[1749433154336,1.41539628,105590.0,105580.0,0.07900632]
[1749433154542,1.41539628,105590.0,105580.0,0.0781334]
[1749433154741,1.41539628,105590.0,105580.0,0.09239812]
[1749433154742,1.26533724,105590.0,105580.0,0.09239812]
[1749433155036,1.34079549,105590.0,105580.0,0.12349812]
[1749433155240,1.34079549,105590.0,105580.0,0.10923345]
[1749433155440,1.34079549,105590.0,105580.0,0.0958416]
[1749433155441,0.38213549,105590.0,105580.0,0.0958416]
[1749433155641,0.91497549,105590.0,105580.0,0.46999783]
[1749433155841,0.38213549,105590.0,105580.0,0.4566416]
[1749433156038,0.91505549,105590.0,105580.0,0.47090607]
[1749433156950,0.91505549,105590.0,105580.0,0.4566416]
[1749433157146,0.91505549,105590.0,105580.0,0.47091277]
[1749433157353,0.91506315,105590.0,105580.0,0.4566416]
[1749433157652,0.91506315,105590.0,105580.0,0.47091277]
[1749433158255,0.91506315,105590.0,105580.0,0.11011277]
[1749433158450,0.91506315,105590.0,105580.0,0.11011861]
[1749433158652,0.91506315,105590.0,105580.0,0.11012499]
[1749433158860,0.38214315,105590.0,105580.0,0.11012497]
[1749433159058,0.36509645,105590.0,105580.0,0.47092497]
[1749433159256,0.1893182,105590.0,105580.0,0.4606982]
[1749433159460,0.7221582,105590.0,105580.0,0.67340997]
[1749433159755,0.8395249,105590.0,105580.0,0.68769267]
[1749433160358,0.8395249,105590.0,105580.0,0.68769242]
[1749433160657,0.8395249,105590.0,105580.0,0.67340997]
[1749433160851,0.8395249,105590.0,105580.0,0.68769242]
[1749433161055,0.8395249,105590.0,105580.0,0.68769241]
[1749433161252,0.8395249,105590.0,105580.0,0.67340997]
[1749433161553,0.8395249,105590.0,105580.0,0.68763134]
[1749433161753,0.8395249,105590.0,105580.0,0.67340997]
[1749433161961,0.8395249,105590.0,105580.0,0.68763134]
[1749433162158,0.8395249,105590.0,105580.0,0.68762673]
[1749433162459,0.8395249,105590.0,105580.0,0.6876267]
[1749433162847,0.8395249,105590.0,105580.0,0.67340997]
[1749433163050,0.8395249,105590.0,105580.0,0.6876267]
[1749433163558,0.8395249,105590.0,105580.0,0.98463294]
[1749433164163,0.8395249,105590.0,105580.0,0.98462931]
[1749433164355,0.8395249,105590.0,105580.0,0.97030997]
[1749433164947,0.8395249,105590.0,105580.0,0.98462935]
[1749433165254,0.8395249,105590.0,105580.0,0.97030997]
[1749433165759,0.8395249,105590.0,105580.0,0.98462942]
[1749433166152,0.8395249,105590.0,105580.0,0.97030997]
[1749433166358,0.8395249,105590.0,105580.0,0.98462941]
[1749433166553,0.7221182,105590.0,105580.0,1.15964607]
[1749433167259,0.7221182,105590.0,105580.0,1.17396551]
[1749433167460,0.7221182,105590.0,105580.0,1.15964607]
[1749433167959,0.7221182,105590.0,105580.0,1.17390356]
[1749433168351,0.7221182,105590.0,105580.0,1.16984696]
[1749433168751,0.7221182,105590.0,105580.0,1.15558947]
[1749433169158,0.7221182,105590.0,105580.0,1.16984023]
[1749433169359,0.7221182,105590.0,105580.0,1.17389683]
[1749433169560,0.7220782,105590.0,105580.0,0.87699683]
[1749433169750,0.7220782,105590.0,105580.0,0.96274607]
[1749433169953,0.7220782,105590.0,105580.0,0.97699663]
[1749433170149,0.7220782,105590.0,105580.0,0.96274607]
[1749433170354,0.7220782,105590.0,105580.0,0.85899525]
[1749433170750,0.7220782,105590.0,105580.0,0.85897137]
[1749433171161,0.7220782,105590.0,105580.0,0.85897136]
[1749433171762,0.7220782,105590.0,105580.0,1.0067092]
[1749433171959,0.7220782,105590.0,105580.0,1.21307195]
[1749433172157,0.7220782,105590.0,105580.0,1.21307194]
[1749433172464,0.7220782,105590.0,105580.0,0.99248274]
[1749433172659,0.7220782,105590.0,105580.0,1.00670591]
[1749433172860,0.7220782,105590.0,105580.0,1.00670704]
[1749433173261,0.7220782,105590.0,105580.0,0.99248274]
[1749433173657,0.7220782,105590.0,105580.0,1.00670704]
[1749433174363,0.7220782,105590.0,105580.0,0.99248274]
[1749433175065,0.7220782,105590.0,105580.0,1.00669743]
[1749433175456,0.3312986,105600.0,105590.0,0.189318]
[1749433175668,0.3312986,105600.0,105590.0,0.87582472]
[1749433175669,0.8640586,105600.0,105590.0,0.87582472]
[1749433175957,0.8640586,105600.0,105590.0,0.87582459]
[1749433176163,0.8640586,105600.0,105590.0,0.95632045]
[1749433176364,0.8640586,105600.0,105590.0,0.97053354]
[1749433176565,0.8640586,105600.0,105590.0,0.95632045]
[1749433177065,0.8660586,105600.0,105590.0,0.95632045]
[1749433177261,0.8660586,105600.0,105590.0,0.85632045]
[1749433177460,0.9834253,105600.0,105590.0,0.85632045]
[1749433177765,0.9834253,105600.0,105590.0,0.66700245]
[1749433177965,1.0490253,105600.0,105590.0,0.66720245]
[1749433178366,1.0490253,105600.0,105590.0,0.63520245]
[1749433178566,1.0822253,105600.0,105590.0,0.63520245]
[1749433178760,1.0822253,105600.0,105590.0,0.82452065]
[1749433179865,1.0822253,105600.0,105590.0,0.79402065]
[1749433180365,1.0822253,105600.0,105590.0,0.60470245]
[1749433180867,1.199592,105600.0,105590.0,0.60470245]
[1749433181069,1.0822253,105600.0,105590.0,0.60470245]
[1749433181266,1.199592,105600.0,105590.0,0.90160245]
[1749433181462,1.0822253,105600.0,105590.0,0.90160245]
[1749433181762,1.0822253,105600.0,105590.0,1.09092065]
[1749433182467,1.199592,105600.0,105590.0,0.90160245]
[1749433182768,1.199592,105600.0,105590.0,0.77599203]
[1749433183369,1.0822253,105600.0,105590.0,0.77599203]
[1749433183562,1.0822253,105600.0,105590.0,0.6577]
[1749433183763,1.199592,105600.0,105590.0,0.6579]
[1749433184463,1.199592,105600.0,105590.0,0.77599203]
[1749433187267,1.199592,105600.0,105590.0,0.47909203]
[1749433189071,1.199592,105600.0,105590.0,0.11829203]
[1749433189461,1.199592,105600.0,105590.0,0.11809203]
[1749433189671,1.199592,105600.0,105590.0,0.11829203]
[1749433190573,1.199592,105600.0,105590.0,0.11809203]
[1749433190772,1.199592,105600.0,105590.0,0.12234863]
[1749433191968,1.59955852,105600.0,105590.0,0.0042566]
[1749433196177,1.59955852,105600.0,105590.0,0.01852301]
[1749433196977,1.59955852,105600.0,105590.0,0.0042566]
[1749433197171,1.59955852,105600.0,105590.0,0.0185434]
[1749433197472,1.36482512,105600.0,105590.0,0.0042566]
[1749433197679,1.23875852,105600.0,105590.0,0.01854337]
[1749433198483,0.70599852,105600.0,105590.0,0.01854337]
[1749433198774,0.70599852,105600.0,105590.0,0.01854405]
[1749433198976,1.24179852,105600.0,105590.0,0.37934394]
[1749433199176,0.47126512,105600.0,105590.0,0.37934395]
[1749433199481,1.24171852,105600.0,105590.0,0.3650566]
[1749433199681,1.24171852,105600.0,105590.0,0.37934395]
[1749433199878,1.24171852,105600.0,105590.0,0.01854395]
[1749433200480,1.24171852,105600.0,105590.0,0.01854647]
[1749433202183,1.24171852,105600.0,105590.0,0.0042566]
[1749433202377,1.24171852,105600.0,105590.0,0.01852842]
[1749433202577,1.24171852,105600.0,105590.0,0.0042566]
[1749433202974,1.24171852,105600.0,105590.0,0.01852842]
[1749433203680,1.24171852,105600.0,105590.0,0.0042566]
[1749433203896,1.09115182,105600.0,105590.0,0.05033023]
[1749433204087,1.02539182,105600.0,105590.0,0.44203023]
[1749433204379,1.02539182,105600.0,105590.0,0.47323414]
[1749433204580,1.05689182,105600.0,105590.0,0.47323415]
[1749433204780,1.05689182,105600.0,105590.0,0.0981566]
[1749433204985,1.05689182,105600.0,105590.0,0.11243417]
[1749433205184,1.05689182,105600.0,105590.0,0.11243425]
[1749433205786,1.05689182,105600.0,105590.0,0.47323416]
[1749433206084,1.05689182,105600.0,105590.0,0.47323414]
[1749433206285,1.05689182,105600.0,105590.0,0.4589566]
[1749433206483,0.3332986,105600.0,105590.0,0.4589566]
[1749433206680,0.9874653,105600.0,105590.0,0.4589566]
[1749433206875,0.9874653,105600.0,105590.0,0.57704863]
[1749433206876,0.4506653,105600.0,105590.0,0.57704863]
[1749433207091,0.9874653,105600.0,105590.0,0.67175008]
[1749433207587,0.9874653,105600.0,105590.0,0.55365805]
[1749433207779,0.9874653,105600.0,105590.0,0.70139607]
[1749433209479,0.9874653,105600.0,105590.0,0.67178541]
[1749433211090,0.9874653,105600.0,105590.0,0.96868541]
[1749433216487,0.9874653,105600.0,105590.0,1.15800351]
[1749433216488,0.4349786,105600.0,105590.0,1.15800351]
[1749433216677,0.9869053,105600.0,105590.0,1.15800351]
[1749433217081,0.9869053,105600.0,105590.0,0.96868541]
[1749433217395,0.9869053,105600.0,105590.0,1.15800351]
[1749433218496,0.9869053,105600.0,105590.0,0.96868541]
[1749433218790,0.9869053,105600.0,105590.0,1.15800351]
[1749433222396,0.4506653,105600.0,105590.0,1.15800351]
[1749433222593,0.9871453,105600.0,105590.0,1.15800351]
[1749433223590,0.9870653,105600.0,105590.0,1.15800351]
[1749433227212,0.9870406,105600.0,105590.0,1.15800351]
[1749433229912,0.9870406,105600.0,105590.0,0.79720351]
[1749433230099,0.9870406,105600.0,105590.0,1.15800351]
[1749433230910,0.9870406,105600.0,105590.0,1.19588351]
[1749433232314,0.9870406,105600.0,105590.0,1.19182691]
[1749433234820,0.9870406,105600.0,105590.0,1.22970691]
[1749433235509,0.9870406,105600.0,105590.0,1.11157955]
[1749433236409,0.9870406,105600.0,105590.0,1.25931757]
[1749433237819,0.9870406,105600.0,105590.0,0.89851757]
[1749433238017,0.9870406,105600.0,105590.0,1.25931757]
[1749433239406,0.9870406,105600.0,105590.0,1.26337417]
[1749433239812,0.9870406,105600.0,105590.0,1.07405607]
[1749433240318,0.9870406,105600.0,105590.0,1.26337417]
[1749433243027,0.8696986,105600.0,105590.0,1.26337417]
[1749433243320,0.10368,105600.0,105590.0,1.18381617]
[1749433243623,0.7259803,105600.0,105590.0,1.42362555]
[1749433243922,0.2923403,105600.0,105590.0,1.42362555]
[1749433244224,0.2923403,105600.0,105590.0,1.71831025]
[1749433244418,0.4096823,105600.0,105590.0,1.92926454]
[1749433244815,0.4096823,105600.0,105590.0,1.42768215]
[1749433245016,0.2923403,105600.0,105590.0,1.42768215]
[1749433245820,0.2923403,105600.0,105590.0,1.53982231]
[1749433248528,0.2923403,105600.0,105590.0,1.33297815]
[1749433250632,0.2923403,105600.0,105590.0,1.48062466]
[1749433253332,0.10304,105600.0,105590.0,1.48062466]
[1749433253521,0.10304,105600.0,105590.0,1.53982231]
[1749433254434,0.2367558,105610.0,105600.0,0.1893002]
[1749433254635,0.7711958,105610.0,105600.0,1.12805415]
[1749433254834,0.3377958,105610.0,105600.0,1.12805415]
[1749433255133,0.3377958,105610.0,105600.0,1.1054136]
[1749433255333,0.3377958,105610.0,105600.0,1.4023136]
[1749433255534,0.3417958,105610.0,105600.0,1.4023136]
[1749433256132,0.4591378,105610.0,105600.0,1.4023136]
[1749433256835,0.4591378,105610.0,105600.0,1.4401836]
[1749433258128,0.3417958,105610.0,105600.0,1.4780536]
[1749433258327,0.4591378,105610.0,105600.0,1.4780536]
[1749433259038,0.3417958,105610.0,105600.0,1.4780536]
[1749433259236,0.4591378,105610.0,105600.0,1.4780536]
[1749433260133,0.3417958,105610.0,105600.0,1.4780536]
[1749433260438,0.4591378,105610.0,105600.0,1.4780536]
[1749433261032,0.4591378,105610.0,105600.0,1.3607116]
[1749433261238,0.4591378,105610.0,105600.0,1.4780536]
[1749433263233,0.1051816,105610.0,105600.0,1.5953956]
[1749433263535,0.294464,105610.0,105600.0,1.5953956]
[1749433263737,0.1051816,105610.0,105600.0,1.5953956]
[1749433263933,0.294464,105610.0,105600.0,1.5953956]
[1749433264130,0.1051816,105610.0,105600.0,1.5953956]
[1749433264342,0.1051816,105610.0,105600.0,1.44782565]
[1749433264649,0.2944639,105610.0,105600.0,1.21314165]
[1749433264838,0.4118059,105610.0,105600.0,1.21314165]
[1749433265043,0.4118059,105610.0,105600.0,1.53696258]
[1749433265244,0.42117323,105610.0,105600.0,1.53696258]
[1749433265640,0.42117323,105610.0,105600.0,1.43696258]
[1749433265840,0.42117323,105610.0,105600.0,1.43716258]
[1749433266238,0.42117323,105610.0,105600.0,1.53716258]
[1749433266744,0.42117323,105610.0,105600.0,1.43716258]
[1749433267140,0.42117323,105610.0,105600.0,1.5145617]
[1749433267845,0.42117323,105610.0,105600.0,1.6145617]
[1749433268045,0.45437323,105610.0,105600.0,1.6145617]
[1749433269045,0.45437323,105610.0,105600.0,1.5145617]
[1749433269345,0.48637323,105610.0,105600.0,1.6145617]
[1749433269547,0.48637323,105610.0,105600.0,1.34146258]
[1749433269748,0.51957323,105610.0,105600.0,1.34146258]
[1749433270434,0.51957323,105610.0,105600.0,1.22412058]
[1749433270638,0.51957323,105610.0,105600.0,1.01764165]
[1749433270947,0.51957323,105610.0,105600.0,1.01744165]
[1749433271146,0.51957323,105610.0,105600.0,1.01764165]
[1749433271649,0.51957323,105610.0,105600.0,1.22412058]
[1749433271849,0.51957323,105610.0,105600.0,1.22817718]
[1749433272049,0.51957323,105610.0,105600.0,1.34551918]
[1749433272241,0.51957323,105610.0,105600.0,1.22817718]
[1749433272946,0.51957323,105610.0,105600.0,1.22412058]
[1749433275650,0.51957323,105610.0,105600.0,1.37181898]
[1749433275845,0.51957323,105610.0,105600.0,1.16534005]
[1749433278755,0.51957323,105610.0,105600.0,0.80454005]
[1749433279051,0.51957323,105610.0,105600.0,1.16534005]
[1749433279659,0.51957323,105610.0,105600.0,0.80454005]
[1749433279857,0.51957323,105610.0,105600.0,1.16534005]
[1749433283056,0.51957323,105610.0,105600.0,0.80454005]
[1749433283255,0.51957323,105610.0,105600.0,1.16534005]
[1749433285757,0.11458893,105610.0,105600.0,1.50002405]
[1749433286060,0.11458893,105610.0,105600.0,1.59948065]
[1749433286259,0.1052216,105610.0,105600.0,1.59948065]
[1749433286458,0.294504,105610.0,105600.0,1.45178225]
[1749433287162,0.294504,105610.0,105600.0,1.59954751]
[1749433287163,0.30386976,105610.0,105600.0,1.59954751]
[1749433288261,0.30386976,105610.0,105600.0,1.59549091]
[1749433288457,0.30386976,105610.0,105600.0,1.44772565]
[1749433291059,0.30386976,105610.0,105600.0,1.59549311]
[1749433291264,0.294504,105610.0,105600.0,1.44772565]
[1749433291964,0.193424,105610.0,105600.0,1.44772565]
[1749433292164,0.727304,105610.0,105600.0,1.44772565]
[1749433292364,0.727304,105610.0,105600.0,1.59549221]
[1749433293059,0.727304,105610.0,105600.0,1.44772565]
[1749433293267,0.727304,105610.0,105600.0,1.45178225]
[1749433293763,0.727304,105610.0,105600.0,1.59954966]
[1749433293954,0.294504,105610.0,105600.0,1.45178225]
[1749433294961,0.294504,105610.0,105600.0,1.599548]
[1749433295468,0.294504,105610.0,105600.0,1.45178225]
[1749433295859,0.294504,105610.0,105600.0,1.59955692]
[1749433296163,0.294504,105610.0,105600.0,1.44772565]
[1749433296366,0.294504,105610.0,105600.0,1.59550148]
[1749433297060,0.294504,105610.0,105600.0,1.95630148]
[1749433297368,0.294504,105610.0,105600.0,1.69118365]
[1749433297559,0.294504,105610.0,105600.0,1.83897454]
[1749433297763,0.294504,105610.0,105600.0,1.69118365]
[1749433299664,0.193424,105610.0,105600.0,1.69118365]
[1749433301565,0.1045416,105610.0,105600.0,1.80852565]
[1749433302066,0.1045416,105610.0,105600.0,2.01500458]
[1749433302265,0.293824,105610.0,105600.0,2.01500458]
[1749433302969,0.293824,105610.0,105600.0,1.80852565]
[1749433304069,0.293824,105610.0,105600.0,2.01500458]
[1749433304463,0.293824,105610.0,105600.0,1.80852565]
[1749433305270,0.293824,105610.0,105600.0,2.01500458]
[1749433305458,0.293824,105610.0,105600.0,1.80852565]
[1749433306171,0.293824,105610.0,105600.0,1.88493675]
[1749433309276,0.293824,105610.0,105600.0,2.09141568]
[1749433309477,0.293824,105610.0,105600.0,1.88493675]
[1749433309975,0.293824,105610.0,105600.0,2.09141568]
[1749433310580,0.411166,105610.0,105600.0,1.75673168]
[1749433310874,0.411166,105610.0,105600.0,1.66739475]
[1749433311074,0.475966,105610.0,105600.0,1.66739475]
[1749433311676,0.475966,105610.0,105600.0,1.87387368]
[1749433311876,0.475966,105610.0,105600.0,1.87407368]
[1749433312073,0.475966,105610.0,105600.0,1.66739475]
[1749433312378,0.475966,105610.0,105600.0,1.87407368]
[1749433313382,0.475966,105610.0,105600.0,1.66759475]
[1749433313581,0.475966,105610.0,105600.0,1.63569475]
[1749433314286,0.475966,105610.0,105600.0,0.91409475]
[1749433314587,0.475966,105610.0,105600.0,1.84217368]
[1749433314887,0.475966,105610.0,105600.0,1.12057368]
[1749433315182,0.475966,105610.0,105600.0,1.84217368]
[1749433315780,0.358624,105610.0,105600.0,1.84217368]
[1749433315987,0.358624,105610.0,105600.0,1.97487368]
[1749433316994,0.358624,105610.0,105600.0,1.87487368]
[1749433317385,0.358624,105610.0,105600.0,1.97487368]
[1749433318488,0.475966,105610.0,105600.0,1.97487368]
[1749433319679,0.475966,105610.0,105600.0,1.76839475]
[1749433320482,0.475966,105610.0,105600.0,1.66839475]
[1749433321094,0.358624,105610.0,105600.0,1.76839475]
[1749433321284,0.5371416,105610.0,105600.0,1.88573675]
[1749433321486,0.5371416,105610.0,105600.0,2.09221568]
[1749433321788,0.726424,105610.0,105600.0,2.09221568]
[1749433322190,0.193424,105610.0,105600.0,2.09221568]
[1749433322391,0.293824,105610.0,105600.0,2.09221568]
[1749433322690,0.293824,105610.0,105600.0,1.85753168]
[1749433322896,0.293824,105610.0,105600.0,2.09221568]
[1749433323594,0.293824,105610.0,105600.0,1.88573675]
[1749433325593,0.293824,105610.0,105600.0,1.76839475]
[1749433327487,0.293824,105610.0,105600.0,1.88573675]
[1749433329486,0.293824,105610.0,105600.0,2.09221568]
[1749433330086,0.411166,105610.0,105600.0,1.87487368]
[1749433330284,0.411166,105610.0,105600.0,1.66839475]
[1749433330488,0.476266,105610.0,105600.0,1.66819475]
[1749433330693,0.476266,105610.0,105600.0,1.66839475]
[1749433331394,0.476266,105610.0,105600.0,1.76839475]
[1749433331996,0.476266,105610.0,105600.0,1.97487368]
[1749433332794,0.476266,105610.0,105600.0,1.76839475]
[1749433334698,0.476266,105610.0,105600.0,1.97487368]
[1749433335496,0.476266,105610.0,105600.0,1.76839475]
[1749433336999,0.476266,105610.0,105600.0,1.04679475]
[1749433337190,0.476266,105610.0,105600.0,1.76839475]
[1749433339799,0.476266,105610.0,105600.0,1.04679475]
[1749433340002,0.476266,105610.0,105600.0,1.76839475]
[1749433340499,0.476266,105610.0,105600.0,1.66839475]
[1749433340691,0.476266,105610.0,105600.0,1.48585275]
[1749433340891,0.507666,105610.0,105600.0,1.48565275]
[1749433341093,0.507666,105610.0,105600.0,1.48585275]
[1749433341490,0.507666,105610.0,105600.0,1.60299475]
[1749433341692,0.507666,105610.0,105600.0,1.75105299]
[1749433342000,0.507666,105610.0,105600.0,1.60319475]
[1749433342201,0.507666,105610.0,105600.0,1.75105024]
[1749433344708,0.507666,105610.0,105600.0,1.60319475]
[1749433345600,0.507666,105610.0,105600.0,1.75104221]
[1749433346306,0.507666,105610.0,105600.0,1.63370021]
[1749433346602,0.507666,105610.0,105600.0,1.48585275]
[1749433347500,0.507666,105610.0,105600.0,1.69233168]
[1749433350910,0.507666,105610.0,105600.0,1.09444]
[1749433351097,0.507666,105610.0,105600.0,1.49021923]
[1749433351499,0.507666,105610.0,105600.0,1.19311923]
[1749433351696,0.507666,105610.0,105600.0,1.19331923]
[1749433352104,0.507666,105610.0,105600.0,1.34110824]
[1749433353309,0.507666,105610.0,105600.0,1.13462931]
[1749433353700,0.507666,105610.0,105600.0,0.41302931]
[1749433353903,0.507666,105610.0,105600.0,0.77382931]
[1749433354105,0.507666,105610.0,105600.0,0.58452901]
[1749433355111,0.507666,105610.0,105600.0,0.77382931]
[1749433355910,0.507666,105610.0,105600.0,0.58452901]
[1749433356517,0.507666,105610.0,105600.0,0.22372901]
[1749433356811,0.507666,105610.0,105600.0,0.77382931]
[1749433357204,0.507666,105610.0,105600.0,0.58452901]
[1749433357803,0.507666,105610.0,105600.0,0.77382931]
[1749433358607,0.507666,105610.0,105600.0,0.58452901]
[1749433358912,0.507666,105610.0,105600.0,0.43674]
[1749433359506,0.507666,105610.0,105600.0,0.6260402]
[1749433361218,0.507666,105610.0,105600.0,0.74420251]
[1749433361722,0.507666,105610.0,105600.0,0.77720251]
[1749433362220,0.507666,105610.0,105600.0,0.6590402]
[1749433362517,0.507666,105610.0,105600.0,0.77720018]
[1749433364019,0.507666,105610.0,105600.0,0.58789998]
[1749433364729,0.507666,105610.0,105600.0,0.77720018]
[1749433364916,0.940186,105610.0,105600.0,0.6590402]
[1749433365124,0.940186,105610.0,105600.0,0.80959609]
[1749433365421,0.940186,105610.0,105600.0,0.80959652]
[1749433366021,0.940186,105610.0,105600.0,0.6914402]
[1749433366415,0.940186,105610.0,105600.0,0.6914403]
[1749433366723,0.908786,105610.0,105600.0,0.7226403]
[1749433367623,0.908786,105610.0,105600.0,0.84080317]
[1749433368620,0.908786,105610.0,105600.0,0.7226403]
[1749433369024,0.908786,105610.0,105600.0,0.84080713]
[1749433369522,0.908786,105610.0,105600.0,0.7226403]
[1749433371824,0.876886,105610.0,105600.0,0.7226403]
[1749433372621,0.876886,105610.0,105600.0,0.87042931]
[1749433379430,0.876886,105610.0,105600.0,0.7226403]
[1749433380018,0.876886,105610.0,105600.0,0.87042931]
[1749433383535,0.909186,105610.0,105600.0,0.87042931]
[1749433385136,0.909186,105610.0,105600.0,0.68112901]
[1749433385935,0.909186,105610.0,105600.0,0.87042921]
[1749433388235,0.791844,105610.0,105600.0,0.87042921]
[1749433388436,0.909186,105610.0,105600.0,0.87042921]
[1749433389429,0.376266,105610.0,105600.0,0.87042921]
[1749433389638,0.843606,105610.0,105600.0,1.08246369]
[1749433390329,0.843606,105610.0,105600.0,0.96512169]
[1749433391136,0.843606,105610.0,105600.0,0.64992901]
[1749433391331,0.907106,105610.0,105600.0,0.61752901]
[1749433391522,0.940006,105610.0,105600.0,0.61752901]
[1749433391935,0.940006,105610.0,105600.0,0.61732901]
[1749433392329,0.940006,105610.0,105600.0,0.61752901]
[1749433393832,1.057348,105610.0,105600.0,0.58432901]
[1749433394135,0.940006,105610.0,105600.0,0.58452901]
[1749433395135,1.057348,105610.0,105600.0,0.58452901]
[1749433395328,1.057348,105610.0,105600.0,0.79080794]
[1749433395525,1.4562277,105610.0,105600.0,0.40052462]
[1749433395840,1.5509221,105610.0,105600.0,0.19404569]
[1749433396230,1.5509221,105610.0,105600.0,0.07594]
[1749433396637,1.5509221,105610.0,105600.0,0.0799966]
[1749433397636,1.4562261,105610.0,105600.0,0.0799966]
[1749433398139,1.5509221,105610.0,105600.0,0.0799966]
[1749433398441,1.55086823,105610.0,105600.0,0.0799966]
[1749433402645,1.45617223,105610.0,105600.0,0.0799966]
[1749433403343,1.418148,105610.0,105600.0,0.0799966]
[1749433403647,1.45598465,105610.0,105600.0,0.0799966]
[1749433404944,1.45598465,105610.0,105600.0,0.0797966]
[1749433405149,1.45598465,105610.0,105600.0,0.0799966]
[1749433408747,1.4559632,105610.0,105600.0,0.0799966]
[1749433409047,0.6884392,105610.0,105600.0,0.0799966]
[1749433409247,0.4489012,105610.0,105600.0,0.0799966]
[1749433409444,0.193424,105610.0,105600.0,0.1407966]
[1749433409651,0.843606,105610.0,105600.0,0.1729966]
[1749433410744,0.843606,105610.0,105600.0,0.5337966]
[1749433413850,0.310766,105610.0,105600.0,0.5337966]
[1749433414052,0.843606,105610.0,105600.0,0.5337966]
[1749433417050,0.726224,105610.0,105600.0,0.5337966]
[1749433417256,0.843566,105610.0,105600.0,0.5337966]
[1749433417451,0.843566,105610.0,105600.0,0.65210229]
[1749433417754,0.843566,105610.0,105600.0,0.5337966]
[1749433418258,0.843566,105610.0,105600.0,0.65210229]
[1749433419654,0.843566,105610.0,105600.0,0.5337966]
[1749433419955,0.843566,105610.0,105600.0,0.65210229]
[1749433425165,0.843566,105610.0,105600.0,0.95874479]
[1749433425452,1.273006,105610.0,105600.0,0.79892761]
[1749433425661,1.273006,105610.0,105600.0,0.68158561]
[1749433426648,1.273006,105610.0,105600.0,0.79974692]
[1749433426959,1.273006,105610.0,105600.0,0.65195791]
[1749433428260,1.273006,105610.0,105600.0,0.64790131]
[1749433429058,1.273006,105610.0,105600.0,0.65195791]
[1749433430253,1.336706,105610.0,105600.0,0.65195791]
[1749433430453,1.336706,105610.0,105600.0,0.65175791]
[1749433431256,1.336706,105610.0,105600.0,0.65195791]
[1749433433265,1.336706,105610.0,105600.0,0.26105791]
[1749433433559,1.336706,105610.0,105600.0,0.62185791]
[1749433438360,1.368606,105610.0,105600.0,0.62185791]
[1749433439165,1.368606,105610.0,105600.0,0.61780131]
[1749433439965,1.368606,105610.0,105600.0,0.58560131]
[1749433440158,1.368606,105610.0,105600.0,0.22480131]
[1749433440363,1.368606,105610.0,105600.0,0.58560131]
[1749433444175,1.368606,105610.0,105600.0,0.22480131]
[1749433444379,1.368606,105610.0,105600.0,0.58560131]
[1749433447668,1.336706,105610.0,105600.0,0.58560131]
[1749433447867,1.336706,105610.0,105600.0,0.83910181]